fUST/lending_fUST_20260603
["ID","MTS","AMOUNT","RATE_DAILY","PERIOD"]
[423841737,1780445439000,-192.30829454,0.00016179,2]
[423841733,1780445439000,-7947.04991216,0.00016179,2]
[423841731,1780445439000,-500.0,0.00016179,2]
[423841729,1780445439000,-7947.04991216,0.00016179,2]
[423841715,1780445439000,-3000.0,0.0001613,2]
[423841725,1780445439000,-968.13929442,0.0001617,2]
[423841723,1780445439000,-495.96716745,0.0001617,2]
[423841717,1780445439000,-3000.0,0.0001614,2]
[423841727,1780445439000,-1535.89353813,0.0001617,2]
[423841719,1780445439000,-3000.0,0.0001615,2]
[423841713,1780445439000,-3000.0,0.0001612,2]
[423841707,1780445439000,-3000.0,0.0001609,2]
[423841711,1780445439000,-3000.0,0.0001611,2]
[423841688,1780445439000,-500.0,0.00015999,2]
[423841682,1780445439000,-296.15895974,0.00015998,2]
[423841696,1780445439000,-3000.0,0.0001603,2]
[423841694,1780445439000,-3000.0,0.0001602,2]
[423841699,1780445439000,-3000.0,0.0001605,2]
[423841701,1780445439000,-3000.0,0.0001606,2]
[423841703,1780445439000,-3000.0,0.0001607,2]
[423841705,1780445439000,-3000.0,0.0001608,2]
[423841709,1780445439000,-3000.0,0.000161,2]
[423841698,1780445439000,-3000.0,0.0001604,2]
[423841690,1780445439000,-3000.0,0.00016,2]
[423842372,1780445444000,-300.0,0.00016179,2]
[423842383,1780445444000,-3418.30604133,0.00016179,2]
[423842370,1780445444000,-1013.27128735,0.00016179,2]
[423842381,1780445444000,-7947.04991216,0.00016179,2]
[423842379,1780445444000,-3354.56340506,0.00016179,2]
[423842338,1780445444000,-7947.04991216,0.00016179,2]
[423842340,1780445444000,-3279.21521975,0.00016179,2]
[423842336,1780445444000,-4370.67061526,0.00016179,2]
[423842653,1780445446000,-4528.74387083,0.00016179,2]
[423842655,1780445447000,-7947.04991216,0.00016179,2]
[423842654,1780445447000,-7947.04991216,0.00016179,2]
[423842656,1780445447000,-7182.41878136,0.00016179,2]
[423846696,1780446133000,191562.81038763,7.6e-05,2]
[423846695,1780446133000,1000.0,7.6e-05,2]
[423846760,1780446638000,-973.68638482,0.00011795,2]
[423846761,1780446638000,-2010.28852108,0.00011795,2]
[423846758,1780446638000,-155.75390054,0.00011524,2]
[423846759,1780446638000,-226.31361518,0.00011795,2]
[423846762,1780446638000,-1412.71962777,0.00011795,2]
[423846764,1780446638000,-446.12646409,0.00011795,2]
[423846763,1780446638000,-3226.68466722,0.00011795,2]
[423846757,1780446638000,-5000.0,0.00011409,2]
[423846766,1780446638000,-7095.81928016,0.00011795,2]
[423846772,1780446638000,-1196.33016954,0.00011795,2]
[423846768,1780446638000,-7095.81928016,0.00011795,2]
[423846770,1780446638000,-2267.74382968,0.00011795,2]
[423846767,1780446638000,-178.52254222,0.00011795,2]
[423846769,1780446638000,-4828.07545048,0.00011795,2]
[423846771,1780446638000,-1333.61579164,0.00011795,2]
[423846765,1780446638000,-500.0,0.00011795,2]
[423846785,1780446640000,-909.75916269,0.00011795,2]
[423846783,1780446640000,-4151.74899632,0.00011795,2]
[423846784,1780446640000,-1936.63878404,0.00011795,2]
[423846782,1780446640000,-414.12432266,0.00011795,2]
[423846829,1780446643000,-3274.2388875,0.00011795,2]
[423846826,1780446643000,-720.0,0.00011795,2]
[423846842,1780446644000,-698.09722163,0.00011795,2]
[423846845,1780446644000,-5317.63284033,0.00011795,2]
[423846840,1780446644000,-7095.81928016,0.00011795,2]
[423846838,1780446644000,-7095.81928016,0.00011795,2]
[423846836,1780446644000,-255.18244593,0.00011795,2]
[423847017,1780446646000,-5667.73939296,0.00011795,2]
[423847003,1780446646000,-1080.0892182,0.00011795,2]
[423847005,1780446646000,-7095.81928016,0.00011795,2]
[423847007,1780446646000,-3401.96476824,0.00011795,2]
[423847019,1780446646000,-1428.0798872,0.00011795,2]
[423847023,1780446646000,-3281.12414125,0.00011795,2]
[423847013,1780446646000,-3693.85451192,0.00011795,2]
[423847015,1780446646000,-7095.81928016,0.00011795,2]
[423847029,1780446646000,-1978.76501909,0.00011795,2]
[423847021,1780446646000,-7095.81928016,0.00011795,2]
[423847027,1780446646000,-3814.69513891,0.00011795,2]
[423847568,1780446729000,-3380.66907215,0.00011677,2]
[423847628,1780447829000,351.23202934,0.00023784,30]
[423847663,1780447832000,-692.80529833,9.99e-05,2]
[423847661,1780447832000,-2430.78936383,9.99e-05,2]
[423847669,1780447832000,-1876.40533784,9.99e-05,2]
[423847683,1780447832000,-500.0,0.0001179,2]
[423847685,1780447832000,-167.0,0.00011795,2]
[423847671,1780447832000,-136.65384348,0.00010399,2]
[423847686,1780447832000,-552.16809911,0.00011795,2]
[423847677,1780447832000,-1386.34615652,0.000104,2]
[423847675,1780447832000,-2047.65384348,0.000104,2]
[423847681,1780447832000,-1062.0,0.00011688,2]
[423847679,1780447832000,-300.0,0.00011687,2]
[423847688,1780447832000,-6011.65873795,0.00011795,2]
[423847690,1780447832000,-3812.16382518,0.00011795,2]
[423847693,1780447832000,-1076.45481776,0.00011795,2]
[423847673,1780447832000,-702.34615652,0.00010399,2]
[423847931,1780447838000,-6011.65873795,0.00011795,2]
[423847935,1780447838000,-5287.83704851,0.00011795,2]
[423847936,1780447838000,-6011.65873795,0.00011795,2]
[423847933,1780447838000,-6011.65873795,0.00011795,2]
[423847934,1780447838000,-723.82168944,0.00011795,2]
[423847930,1780447838000,-6011.65873795,0.00011795,2]
[423847937,1780447838000,-6011.65873795,0.00011795,2]
[423847932,1780447838000,-6011.65873795,0.00011795,2]
[423847939,1780447838000,-6011.65873795,0.00011795,2]
[423847928,1780447838000,-6011.65873795,0.00011795,2]
[423847929,1780447838000,-6011.65873795,0.00011795,2]
[423847927,1780447838000,-6011.65873795,0.00011795,2]
[423847926,1780447838000,-6011.65873795,0.00011795,2]
[423847925,1780447838000,-1123.04009501,0.00011795,2]
[423847940,1780447838000,-6011.65873795,0.00011795,2]
[423847938,1780447838000,-6011.65873795,0.00011795,2]
[423847943,1780447838000,-300.0,0.00012035,2]
[423847945,1780447838000,-300.0,0.00012035,2]
[423847957,1780447838000,-600.0,0.00012035,2]
[423847956,1780447838000,-300.0,0.00012035,2]
[423847955,1780447838000,-300.0,0.00012035,2]
[423847952,1780447838000,-300.0,0.00012035,2]
[423847954,1780447838000,-300.0,0.00012035,2]
[423847959,1780447838000,-12796.0124597,0.00013235,2]
[423847953,1780447838000,-300.0,0.00012035,2]
[423847950,1780447838000,-300.0,0.00012035,2]
[423847942,1780447838000,-300.0,0.00012035,2]
[423847951,1780447838000,-300.0,0.00012035,2]
[423847947,1780447838000,-300.0,0.00012035,2]
[423847949,1780447838000,-300.0,0.00012035,2]
[423847958,1780447838000,-417.71558672,0.00012255,2]
[423847948,1780447838000,-300.0,0.00012035,2]
[423847946,1780447838000,-300.0,0.00012035,2]
[423847944,1780447838000,-300.0,0.00012035,2]
[423847941,1780447838000,-175002.18571064,0.000118,5]
[423847961,1780447839000,-20730.8236668,0.00013235,2]
[423847962,1780447839000,-10674.43629188,0.00013235,2]
[423847960,1780447839000,-2607.2668241,0.00013235,2]
[423847979,1780447843000,-372.3503575,0.00011786,2]
[423847980,1780447843000,-202.69265703,0.00011786,2]
[423847978,1780447843000,-2595.34078223,0.00011687,2]
[423847977,1780447843000,-5000.0,0.00011677,2]
[423847995,1780447844000,-500.0,0.00011786,2]
[423848000,1780447844000,-500.0,0.00011786,2]
[423847996,1780447844000,-500.0,0.00011786,2]
[423847994,1780447844000,-500.0,0.00011786,2]
[423848002,1780447844000,-500.0,0.00011786,2]
[423847991,1780447844000,-500.0,0.00011786,2]
[423848004,1780447844000,-500.0,0.00011786,2]
[423848011,1780447844000,-500.0,0.00011786,2]
[423848009,1780447844000,-500.0,0.00011786,2]
[423848014,1780447844000,-500.0,0.00011786,2]
[423848007,1780447844000,-500.0,0.00011786,2]
[423847998,1780447844000,-500.0,0.00011786,2]
[423847990,1780447844000,-500.0,0.00011786,2]
[423847992,1780447844000,-505.08030032,0.00011786,2]
[423847987,1780447844000,-500.0,0.00011786,2]
[423847984,1780447844000,-500.0,0.00011786,2]
[423847985,1780447844000,-500.0,0.00011786,2]
[423847981,1780447844000,-500.0,0.00011786,2]
[423847983,1780447844000,-500.0,0.00011786,2]
[423847986,1780447844000,-500.0,0.00011786,2]
[423847982,1780447844000,-500.0,0.00011786,2]
[423847989,1780447844000,-500.0,0.00011786,2]
[423847988,1780447844000,-500.0,0.00011786,2]
[423848012,1780447844000,-500.0,0.00011786,2]
[423847993,1780447844000,-500.0,0.00011786,2]
[423848018,1780447844000,-500.0,0.00011786,2]
[423848028,1780447844000,-500.0,0.00011786,2]
[423848030,1780447844000,-500.0,0.00011786,2]
[423848082,1780447844000,-2750.30372088,0.00013235,2]
[423848072,1780447844000,-500.0,0.00011786,2]
[423848069,1780447844000,-500.0,0.00011786,2]
[423848063,1780447844000,-500.0,0.00011786,2]
[423848066,1780447844000,-500.0,0.00011786,2]
[423848058,1780447844000,-500.0,0.00011786,2]
[423848060,1780447844000,-500.0,0.00011786,2]
[423848055,1780447844000,-500.0,0.00011786,2]
[423848080,1780447844000,-10042.50260172,0.00013235,2]
[423848049,1780447844000,-500.0,0.00011786,2]
[423848052,1780447844000,-500.0,0.00011786,2]
[423848043,1780447844000,-500.0,0.00011786,2]
[423848075,1780447844000,-500.0,0.00011786,2]
[423848041,1780447844000,-500.0,0.00011786,2]
[423848036,1780447844000,-500.0,0.00011786,2]
[423848020,1780447844000,-500.0,0.00011786,2]
[423848024,1780447844000,-500.0,0.00011786,2]
[423848078,1780447844000,-500.0,0.00011786,2]
[423848022,1780447844000,-500.0,0.00011786,2]
[423848016,1780447844000,-500.0,0.00011786,2]
[423848026,1780447844000,-500.0,0.00011786,2]
[423848034,1780447844000,-500.0,0.00011786,2]
[423848038,1780447844000,-500.0,0.00011786,2]
[423848046,1780447844000,-500.0,0.00011786,2]
[423848039,1780447844000,-500.0,0.00011786,2]
[423848032,1780447844000,-500.0,0.00011786,2]
[423848401,1780447846000,-500.0,0.00013698,2]
[423848397,1780447846000,-500.0,0.00013698,2]
[423848393,1780447846000,-500.0,0.00013698,2]
[423848391,1780447846000,-500.0,0.00013698,2]
[423848388,1780447846000,-500.0,0.00013698,2]
[423848381,1780447846000,-500.0,0.00013698,2]
[423848382,1780447846000,-500.0,0.00013698,2]
[423848375,1780447846000,-500.0,0.00013698,2]
[423848377,1780447846000,-500.0,0.00013698,2]
[423848385,1780447846000,-500.0,0.00013698,2]
[423848379,1780447846000,-648.64,0.00013698,2]
[423848373,1780447846000,-500.0,0.00013698,2]
[423848370,1780447846000,-500.0,0.00013698,2]
[423848368,1780447846000,-500.0,0.00013698,2]
[423848366,1780447846000,-500.0,0.00013698,2]
[423848356,1780447846000,-720.0,0.00013238,2]
[423848354,1780447846000,-3057.38370922,0.00013235,2]
[423848362,1780447846000,-500.0,0.00013698,2]
[423848358,1780447846000,-500.0,0.00013698,2]
[423848360,1780447846000,-500.0,0.00013698,2]
[423848399,1780447846000,-500.0,0.00013698,2]
[423848371,1780447846000,-500.0,0.00013698,2]
[423848364,1780447846000,-500.0,0.00013698,2]
[423848415,1780447846000,-500.0,0.00013698,2]
[423848403,1780447846000,-500.0,0.00013698,2]
[423848395,1780447846000,-500.0,0.00013698,2]
[423848445,1780447846000,-500.0,0.00013698,2]
[423848443,1780447846000,-500.0,0.00013698,2]
[423848441,1780447846000,-500.0,0.00013698,2]
[423848438,1780447846000,-500.0,0.00013698,2]
[423848430,1780447846000,-500.0,0.00013698,2]
[423848436,1780447846000,-633.36902697,0.00013698,2]
[423848427,1780447846000,-500.0,0.00013698,2]
[423848432,1780447846000,-500.0,0.00013698,2]
[423848429,1780447846000,-500.0,0.00013698,2]
[423848434,1780447846000,-500.0,0.00013698,2]
[423848439,1780447846000,-502.56285709,0.00013698,2]
[423848422,1780447846000,-500.0,0.00013698,2]
[423848423,1780447846000,-500.0,0.00013698,2]
[423848418,1780447846000,-572.60333001,0.00013698,2]
[423848411,1780447846000,-501.90953744,0.00013698,2]
[423848407,1780447846000,-500.0,0.00013698,2]
[423848417,1780447846000,-500.0,0.00013698,2]
[423848405,1780447846000,-605.99531709,0.00013698,2]
[423848413,1780447846000,-500.0,0.00013698,2]
[423848420,1780447846000,-500.0,0.00013698,2]
[423848425,1780447846000,-500.0,0.00013698,2]
[423848409,1780447846000,-500.0,0.00013698,2]
[423848500,1780447847000,-500.0,0.00013698,2]
[423848476,1780447847000,-500.0,0.00013698,2]
[423848475,1780447847000,-500.0,0.00013698,2]
[423848479,1780447847000,-500.0,0.00013698,2]
[423848478,1780447847000,-500.0,0.00013698,2]
[423848493,1780447847000,-500.0,0.00013698,2]
[423848495,1780447847000,-500.0,0.00013698,2]
[423848497,1780447847000,-500.0,0.00013698,2]
[423848486,1780447847000,-500.0,0.00013698,2]
[423848502,1780447847000,-531.18,0.00013698,2]
[423848485,1780447847000,-500.0,0.00013698,2]
[423848515,1780447847000,-500.0,0.00013698,2]
[423848487,1780447847000,-500.0,0.00013698,2]
[423848489,1780447847000,-381.34569648,0.00013698,2]
[423848491,1780447847000,-118.65430352,0.00013698,2]
[423848504,1780447847000,-500.0,0.00013698,2]
[423848505,1780447847000,-500.0,0.00013698,2]
[423848507,1780447847000,-500.0,0.00013698,2]
[423848513,1780447847000,-500.0,0.00013698,2]
[423848511,1780447847000,-500.0,0.00013698,2]
[423848509,1780447847000,-500.0,0.00013698,2]
[423848474,1780447847000,-500.0,0.00013698,2]
[423848498,1780447847000,-500.0,0.00013698,2]
[423848477,1780447847000,-500.0,0.00013698,2]
[423848567,1780447847000,-500.0,0.00013698,2]
[423848482,1780447847000,-500.0,0.00013698,2]
[423848520,1780447847000,-500.0,0.00013698,2]
[423848447,1780447847000,-500.0,0.00013698,2]
[423848457,1780447847000,-500.0,0.00013698,2]
[423848459,1780447847000,-500.0,0.00013698,2]
[423848463,1780447847000,-500.0,0.00013698,2]
[423848461,1780447847000,-500.0,0.00013698,2]
[423848465,1780447847000,-500.0,0.00013698,2]
[423848466,1780447847000,-214.02030934,0.00013698,2]
[423848467,1780447847000,-500.0,0.00013698,2]
[423848449,1780447847000,-500.0,0.00013698,2]
[423848480,1780447847000,-499.34922634,0.00013698,2]
[423848468,1780447847000,-500.0,0.00013698,2]
[423848469,1780447847000,-500.0,0.00013698,2]
[423848470,1780447847000,-500.0,0.00013698,2]
[423848453,1780447847000,-500.0,0.00013698,2]
[423848451,1780447847000,-500.0,0.00013698,2]
[423848472,1780447847000,-500.0,0.00013698,2]
[423848483,1780447847000,-500.0,0.00013698,2]
[423848481,1780447847000,-500.0,0.00013698,2]
[423848473,1780447847000,-500.0,0.00013698,2]
[423848484,1780447847000,-500.0,0.00013698,2]
[423848471,1780447847000,-500.0,0.00013698,2]
[423848455,1780447847000,-500.0,0.00013698,2]
[423848527,1780447847000,-500.0,0.00013698,2]
[423848599,1780447847000,-500.0,0.00013698,2]
[423848522,1780447847000,-500.0,0.00013698,2]
[423848565,1780447847000,-500.0,0.00013698,2]
[423848576,1780447847000,-560.30107329,0.00013698,2]
[423848570,1780447847000,-500.0,0.00013698,2]
[423848568,1780447847000,-500.0,0.00013698,2]
[423848581,1780447847000,-500.0,0.00013698,2]
[423848579,1780447847000,-500.0,0.00013698,2]
[423848585,1780447847000,-500.0,0.00013698,2]
[423848583,1780447847000,-500.0,0.00013698,2]
[423848587,1780447847000,-500.0,0.00013698,2]
[423848588,1780447847000,-500.0,0.00013698,2]
[423848597,1780447847000,-500.0,0.00013698,2]
[423848592,1780447847000,-500.0,0.00013698,2]
[423848594,1780447847000,-500.0,0.00013698,2]
[423848590,1780447847000,-500.0,0.00013698,2]
[423848610,1780447847000,-431.94739173,0.00013698,2]
[423848595,1780447847000,-500.0,0.00013698,2]
[423848603,1780447847000,-500.0,0.00013698,2]
[423848601,1780447847000,-619.69,0.00013698,2]
[423848604,1780447847000,-500.0,0.00013698,2]
[423848606,1780447847000,-365.58485261,0.00013698,2]
[423848526,1780447847000,-500.0,0.00013698,2]
[423848608,1780447847000,-134.41514739,0.00013698,2]
[423848572,1780447847000,-557.72,0.00013698,2]
[423848578,1780447847000,-500.0,0.00013698,2]
[423848563,1780447847000,-500.0,0.00013698,2]
[423848518,1780447847000,-500.0,0.00013698,2]
[423848574,1780447847000,-500.0,0.00013698,2]
[423848517,1780447847000,-500.0,0.00013698,2]
[423848524,1780447847000,-500.0,0.00013698,2]
[423848532,1780447847000,-500.0,0.00013698,2]
[423848529,1780447847000,-500.0,0.00013698,2]
[423848531,1780447847000,-500.0,0.00013698,2]
[423848534,1780447847000,-500.0,0.00013698,2]
[423848544,1780447847000,-500.0,0.00013698,2]
[423848549,1780447847000,-500.0,0.00013698,2]
[423848548,1780447847000,-500.0,0.00013698,2]
[423848546,1780447847000,-649.71911033,0.00013698,2]
[423848562,1780447847000,-500.0,0.00013698,2]
[423848536,1780447847000,-500.0,0.00013698,2]
[423848538,1780447847000,-500.0,0.00013698,2]
[423848553,1780447847000,-350.79005373,0.00013698,2]
[423848539,1780447847000,-500.0,0.00013698,2]
[423848540,1780447847000,-500.0,0.00013698,2]
[423848554,1780447847000,-500.0,0.00013698,2]
[423848556,1780447847000,-500.0,0.00013698,2]
[423848558,1780447847000,-500.0,0.00013698,2]
[423848551,1780447847000,-500.0,0.00013698,2]
[423848560,1780447847000,-500.0,0.00013698,2]
[423849292,1780449038000,-300.0,0.00012021,2]
[423849296,1780449038000,-300.0,0.00012021,2]
[423849298,1780449038000,-300.0,0.00012021,2]
[423849307,1780449038000,-506.45629714,0.0001315,2]
[423849301,1780449038000,-600.0,0.00012021,2]
[423849303,1780449038000,-1628.921994,0.000124,2]
[423849305,1780449038000,-168.458092,0.00012923,2]
[423849290,1780449038000,-300.0,0.00012021,2]
[423849300,1780449038000,-300.0,0.00012021,2]
[423849284,1780449038000,-300.0,0.00012021,2]
[423849270,1780449038000,-226.0,0.0001202,2]
[423849286,1780449038000,-300.0,0.00012021,2]
[423849294,1780449038000,-300.0,0.00012021,2]
[423849282,1780449038000,-300.0,0.00012021,2]
[423849278,1780449038000,-300.0,0.00012021,2]
[423849280,1780449038000,-300.0,0.00012021,2]
[423849266,1780449038000,-5000.0,9.415e-05,2]
[423849268,1780449038000,-487.50430591,0.0001,2]
[423849276,1780449038000,-300.0,0.00012021,2]
[423849274,1780449038000,-300.0,0.00012021,2]
[423849272,1780449038000,-300.0,0.00012021,2]
[423849309,1780449038000,-720.0,0.00013223,2]
[423849288,1780449038000,-300.0,0.00012021,2]
[423849311,1780449038000,-298.10460303,0.00013377,2]
[423849331,1780449038000,-500.0,0.00013694,2]
[423849315,1780449038000,-162.0,0.000136,2]
[423849313,1780449038000,-2270.92318439,0.00013595,2]
[423849361,1780449038000,-500.0,0.00013694,2]
[423849359,1780449038000,-500.0,0.00013694,2]
[423849357,1780449038000,-500.0,0.00013694,2]
[423849355,1780449038000,-500.0,0.00013694,2]
[423849340,1780449038000,-500.0,0.00013694,2]
[423849353,1780449038000,-500.0,0.00013694,2]
[423849342,1780449038000,-259.81876257,0.00013694,2]
[423849338,1780449038000,-500.0,0.00013694,2]
[423849349,1780449038000,-500.0,0.00013694,2]
[423849335,1780449038000,-500.0,0.00013694,2]
[423849351,1780449038000,-500.0,0.00013694,2]
[423849336,1780449038000,-500.0,0.00013694,2]
[423849317,1780449038000,-500.0,0.00013694,2]
[423849348,1780449038000,-500.0,0.00013694,2]
[423849319,1780449038000,-500.0,0.00013694,2]
[423849321,1780449038000,-500.0,0.00013694,2]
[423849323,1780449038000,-500.0,0.00013694,2]
[423849325,1780449038000,-500.0,0.00013694,2]
[423849329,1780449038000,-500.0,0.00013694,2]
[423849327,1780449038000,-500.0,0.00013694,2]
[423849333,1780449038000,-500.0,0.00013694,2]
[423849344,1780449038000,-500.0,0.00013694,2]
[423849346,1780449038000,-500.0,0.00013694,2]
[423849446,1780449039000,-183.7242899,0.00013698,2]
[423849436,1780449039000,-5049.79333987,0.00013698,2]
[423849434,1780449039000,-5049.79333987,0.00013698,2]
[423849438,1780449039000,-5049.79333987,0.00013698,2]
[423849448,1780449039000,-8425.6152629,0.00013698,2]
[423849444,1780449039000,-5049.79333987,0.00013698,2]
[423849424,1780449039000,-5049.79333987,0.00013698,2]
[423849432,1780449039000,-5049.79333987,0.00013698,2]
[423849440,1780449039000,-5049.79333987,0.00013698,2]
[423849430,1780449039000,-5049.79333987,0.00013698,2]
[423849420,1780449039000,-5049.79333987,0.00013698,2]
[423849450,1780449039000,-500.0,0.00013698,2]
[423849442,1780449039000,-5049.79333987,0.00013698,2]
[423849452,1780449039000,-500.0,0.00013698,2]
[423849478,1780449039000,-500.0,0.00013698,2]
[423849456,1780449039000,-588.86,0.00013698,2]
[423849466,1780449039000,-500.0,0.00013698,2]
[423849468,1780449039000,-500.0,0.00013698,2]
[423849470,1780449039000,-500.0,0.00013698,2]
[423849458,1780449039000,-500.0,0.00013698,2]
[423849472,1780449039000,-365.35753456,0.00013698,2]
[423849474,1780449039000,-500.0,0.00013698,2]
[423849476,1780449039000,-500.0,0.00013698,2]
[423849460,1780449039000,-500.0,0.00013698,2]
[423849462,1780449039000,-500.0,0.00013698,2]
[423849464,1780449039000,-500.0,0.00013698,2]
[423849480,1780449039000,-500.0,0.00013698,2]
[423849426,1780449039000,-5049.79333987,0.00013698,2]
[423849454,1780449039000,-500.0,0.00013698,2]
[423849418,1780449039000,-5049.79333987,0.00013698,2]
[423849481,1780449039000,-500.0,0.00013698,2]
[423849428,1780449039000,-5049.79333987,0.00013698,2]
[423849483,1780449039000,-500.0,0.00013698,2]
[423849367,1780449039000,-500.0,0.00013694,2]
[423849369,1780449039000,-500.0,0.00013694,2]
[423849370,1780449039000,-163.94877618,0.00013694,2]
[423849372,1780449039000,-500.0,0.00013694,2]
[423849374,1780449039000,-500.0,0.00013694,2]
[423849365,1780449039000,-500.0,0.00013694,2]
[423849363,1780449039000,-500.0,0.00013694,2]
[423849376,1780449039000,-500.0,0.00013694,2]
[423849378,1780449039000,-500.0,0.00013694,2]
[423849380,1780449039000,-500.0,0.00013694,2]
[423849382,1780449039000,-500.0,0.00013694,2]
[423849392,1780449039000,-801.1967443,0.00013697,2]
[423849416,1780449039000,-5049.79333987,0.00013698,2]
[423849395,1780449039000,-4501.08626258,0.00013697,2]
[423849399,1780449039000,-5302.28300688,0.00013697,2]
[423849385,1780449039000,-500.0,0.00013694,2]
[423849383,1780449039000,-500.0,0.00013694,2]
[423849387,1780449039000,-500.0,0.00013694,2]
[423849401,1780449039000,-5302.28300688,0.00013697,2]
[423849390,1780449039000,-440.55929307,0.00013697,2]
[423849403,1780449039000,-5302.28300688,0.00013697,2]
[423849405,1780449039000,-5302.28300688,0.00013697,2]
[423849412,1780449039000,-5049.79333987,0.00013698,2]
[423849410,1780449039000,-5302.28300688,0.00013697,2]
[423849408,1780449039000,-5302.28300688,0.00013697,2]
[423849414,1780449039000,-5049.79333987,0.00013698,2]
[423849422,1780449039000,-5049.79333987,0.00013698,2]
[423849397,1780449039000,-5302.28300688,0.00013697,2]
[423849485,1780449039000,-1000.0,0.00013698,2]
[423849526,1780449039000,-500.0,0.00013698,2]
[423849489,1780449039000,-500.0,0.00013698,2]
[423849540,1780449039000,-500.0,0.00013698,2]
[423849555,1780449039000,-500.0,0.00013698,2]
[423849557,1780449039000,-7188.2530864,0.00013698,2]
[423849559,1780449039000,-164.30900787,0.00013698,2]
[423849577,1780449039000,-500.0,0.00013698,2]
[423849571,1780449039000,-500.0,0.00013698,2]
[423849567,1780449039000,-500.0,0.00013698,2]
[423849569,1780449039000,-500.0,0.00013698,2]
[423849561,1780449039000,-500.0,0.00013698,2]
[423849573,1780449039000,-500.0,0.00013698,2]
[423849563,1780449039000,-500.0,0.00013698,2]
[423849565,1780449039000,-500.0,0.00013698,2]
[423849575,1780449039000,-500.0,0.00013698,2]
[423849542,1780449039000,-500.0,0.00013698,2]
[423849579,1780449039000,-500.0,0.00013698,2]
[423849583,1780449039000,-500.0,0.00013698,2]
[423849585,1780449039000,-500.0,0.00013698,2]
[423849587,1780449039000,-500.0,0.00013698,2]
[423849591,1780449039000,-500.0,0.00013698,2]
[423849593,1780449039000,-500.0,0.00013698,2]
[423849595,1780449039000,-500.0,0.00013698,2]
[423849597,1780449039000,-500.0,0.00013698,2]
[423849589,1780449039000,-500.0,0.00013698,2]
[423849605,1780449039000,-500.0,0.00013698,2]
[423849599,1780449039000,-500.0,0.00013698,2]
[423849603,1780449039000,-500.0,0.00013698,2]
[423849601,1780449039000,-500.0,0.00013698,2]
[423849487,1780449039000,-500.0,0.00013698,2]
[423849581,1780449039000,-500.0,0.00013698,2]
[423849551,1780449039000,-500.0,0.00013698,2]
[423849607,1780449039000,-500.0,0.00013698,2]
[423849538,1780449039000,-500.0,0.00013698,2]
[423849611,1780449039000,-500.0,0.00013698,2]
[423849491,1780449039000,-500.0,0.00013698,2]
[423849499,1780449039000,-500.0,0.00013698,2]
[423849503,1780449039000,-500.0,0.00013698,2]
[423849493,1780449039000,-500.0,0.00013698,2]
[423849501,1780449039000,-500.0,0.00013698,2]
[423849497,1780449039000,-500.0,0.00013698,2]
[423849553,1780449039000,-500.0,0.00013698,2]
[423849505,1780449039000,-500.0,0.00013698,2]
[423849507,1780449039000,-500.0,0.00013698,2]
[423849509,1780449039000,-500.0,0.00013698,2]
[423849522,1780449039000,-500.0,0.00013698,2]
[423849609,1780449039000,-500.0,0.00013698,2]
[423849518,1780449039000,-500.0,0.00013698,2]
[423849495,1780449039000,-500.0,0.00013698,2]
[423849511,1780449039000,-500.0,0.00013698,2]
[423849536,1780449039000,-500.0,0.00013698,2]